bitfinex/quotes_SOLUSD_20240603
["timestamp","ask_amount","ask_price","bid_price","bid_amount"]
[1717436830544,7.0,165.67,165.63,2.2338]
[1717436831207,7.0,165.67,165.64,2.2337]
[1717436831413,7.0,165.68,165.64,2.2337]
[1717436831735,7.0,165.68,165.65,2.2336]
[1717436832034,7.0,165.68,165.64,2.2337]
[1717436832746,7.0,165.67,165.62,2.2339]
[1717436832933,7.0,165.66,165.62,2.2339]
[1717436833115,7.0,165.66,165.63,2.2338]
[1717436833313,7.0,165.67,165.63,2.2338]
[1717436833609,8.5894,165.7,165.64,2.2337]
[1717436833829,6.3564,165.7,165.64,2.2337]
[1717436834006,7.0,165.69,165.64,2.2337]
[1717436837212,2.2327,165.72,165.65,2.2336]
[1717436837417,7.0,165.71,165.66,2.2334]
[1717436837617,7.0,165.71,165.65,9.2335]
[1717436837813,9.2328,165.71,165.64,9.2337]
[1717436838014,7.0,165.7,165.64,9.2337]
[1717436838631,7.0,165.7,165.64,2.2337]
[1717436840111,7.0,165.7,165.65,2.2336]
[1717436841855,7.0,165.7,165.64,7.0]
[1717436842024,9.2329,165.7,165.64,2.2337]
[1717436842336,7.0,165.7,165.64,2.2337]
[1717436842532,7.0,165.7,165.65,2.2336]
[1717436843036,22.6253,165.74,165.66,2.2334]
[1717436843256,22.6253,165.74,165.64,7.0]
[1717436843257,7.0,165.7,165.64,7.0]
[1717436843540,7.0,165.7,165.65,2.2335]
[1717436843720,7.0,165.7,165.64,9.2336]
[1717436844039,7.0,165.71,165.65,2.2335]
[1717436844651,9.2328,165.71,165.65,2.2335]
[1717436844809,9.2328,165.71,165.64,7.0]
[1717436844810,7.0,165.7,165.64,9.2337]
[1717436845311,9.2329,165.7,165.64,9.2337]
[1717436845513,9.2329,165.7,165.61,15.78286892]
[1717436845715,9.2329,165.7,165.63,7.0]
[1717436846417,9.2329,165.7,165.64,2.2337]
[1717436848252,7.0,165.7,165.64,2.2337]
[1717436851229,9.2329,165.7,165.64,2.2337]
[1717436851743,4.4652,165.73,165.64,2.2337]
[1717436851943,9.233,165.7,165.64,2.2337]
[1717436854532,7.0,165.7,165.64,2.2337]
[1717436854741,7.0,165.7,165.65,2.2335]
[1717436856830,7.0,165.7,165.64,9.2336]
[1717436857956,2.2324,165.74,165.65,10.691]
[1717436858154,7.0,165.74,165.67,2.2332]
[1717436858338,2.2325,165.73,165.65,6.2238]
[1717436858659,2.2325,165.73,165.67,7.0]
[1717436858865,9.2325,165.73,165.67,9.2332]
[1717436859537,9.2325,165.73,165.66,9.2334]
[1717436860343,9.2325,165.73,165.67,2.2333]
[1717436861452,7.0,165.72,165.66,2.2334]
[1717436862154,7.0,165.7,165.63,7.0]
[1717436862447,7.0,165.7,165.65,2.2335]
[1717436862656,2.2325,165.73,165.64,7.0]
[1717436862851,7.0,165.71,165.67,2.2333]
[1717436863236,7.0,165.7,165.66,2.2334]
[1717436863833,7.0,165.7,165.65,2.2335]
[1717436865677,7.0,165.7,165.66,2.2334]
[1717436866536,7.0,165.7,165.65,2.2335]
[1717436867035,4.4649,165.74,165.65,2.2335]
[1717436867036,7.0,165.69,165.65,2.2335]
[1717436867265,7.0,165.69,165.64,2.2337]
[1717436867436,7.0,165.68,165.63,2.2338]
[1717436868049,7.0,165.68,165.61,0.2]
[1717436868050,7.0,165.66,165.61,0.2]
[1717436868364,6.1186,165.71,165.61,0.2]
[1717436868365,7.0,165.67,165.62,2.234]
[1717436868653,7.0,165.67,165.63,2.2338]
[1717436869072,7.0,165.68,165.63,2.2338]
[1717436870037,7.0,165.68,165.62,7.0]
[1717436870366,7.0,165.68,165.61,7.2]
[1717436870666,7.0,165.68,165.63,2.2338]
[1717436873055,2.233,165.7,165.63,2.2338]
[1717436873261,7.0,165.68,165.63,2.2338]
[1717436878753,7.0,165.68,165.62,2.2339]
[1717436878962,7.0,165.68,165.63,2.2338]
[1717436880671,7.0,165.67,165.63,2.2338]
[1717436881354,7.0,165.67,165.62,2.2339]
[1717436881686,7.0,165.67,165.63,2.2338]
[1717436881861,7.0,165.67,165.63,3.4408597]
[1717436882062,7.0,165.67,165.63,2.2338]
[1717436882772,2.233,165.7,165.63,2.2338]
[1717436882968,7.0,165.67,165.63,2.2338]
[1717436883369,7.0,165.67,165.62,2.2339]
[1717436883878,7.0,165.67,165.63,2.2338]
[1717436884582,7.0,165.68,165.63,2.2338]
[1717436885378,7.0,165.65,165.61,0.2]
[1717436885677,7.0,165.65,165.61,2.4341]
[1717436886277,7.0,165.64,165.61,0.2]
[1717436888684,2.2335,165.66,165.61,0.2]
[1717436889556,28.0,165.68,165.61,0.2]
[1717436889557,2.2336,165.65,165.61,0.2]
[1717436890193,2.2337,165.64,165.61,0.2]
[1717436890361,6.86489623,165.67,165.61,0.2]
[1717436890362,7.0,165.62,165.61,0.2]
[1717436892660,2.2338,165.64,165.61,0.2]
[1717436892865,7.0,165.62,165.61,0.2]
[1717436895000,15.7953,165.62,165.61,0.2]
[1717436895698,31.5285,165.62,165.61,0.2]
[1717436896406,31.98679623,165.62,165.61,0.2]
[1717436896897,31.5285,165.62,165.61,0.2]
[1717436897079,50.0385,165.62,165.61,0.2]
[1717436897587,58.9746,165.62,165.61,0.2]
[1717436898601,2.2345,165.59,165.52,2.2353]
[1717436898801,7.0,165.56,165.52,2.2353]
[1717436900295,7.0,165.56,165.51,2.4354]
[1717436900594,0.45829623,165.57,165.51,0.2]
[1717436900805,7.0,165.53,165.51,0.2]
[1717436901300,7.0,165.52,165.51,0.2]
[1717436903198,9.2353,165.52,165.51,0.2]
[1717436903588,7.0,165.52,165.51,0.2]
[1717436905291,9.2353,165.52,165.51,0.2]
[1717436906389,22.4887,165.52,165.51,0.2]
[1717436906595,38.82409623,165.52,165.51,0.2]
[1717436907403,38.3658,165.52,165.51,0.2]
[1717436908701,4.4711,165.51,165.46,0.32516629]
[1717436908907,7.0,165.47,165.46,0.32516629]
[1717436909079,7.45829623,165.47,165.46,0.32516629]
[1717436909498,9.69429623,165.47,165.46,0.32516629]
[1717436909699,9.406,165.47,165.46,0.32516629]
[1717436909895,9.576,165.47,165.46,0.32516629]
[1717436910084,15.6419,165.47,165.46,0.32516629]
[1717436912893,9.576,165.47,165.46,0.32516629]
[1717436913288,6.6234,165.46,165.41,0.2]
[1717436913504,7.0,165.42,165.41,0.2]
[1717436916012,2.2365,165.44,165.41,0.2]
[1717436916188,7.0,165.42,165.41,0.2]
[1717436916384,2.2365,165.44,165.41,0.2]
[1717436916590,7.0,165.42,165.41,0.2]
[1717436917898,30.29969623,165.42,165.31,0.2]
[1717436918108,7.0,165.34,165.31,0.2]
[1717436918511,4.474,165.4,165.31,6.672]
[1717436918724,7.0,165.36,165.31,8.9101]
[1717436919525,7.0,165.36,165.31,6.672]
[1717436919526,7.0,165.35,165.31,6.672]
[1717436919725,7.0,165.34,165.31,6.672]
[1717436920022,7.0,165.33,165.31,0.2]
[1717436920192,7.0,165.34,165.31,0.2]
[1717436920398,7.0,165.33,165.31,0.2]
[1717436921129,7.0,165.32,165.31,0.2]
[1717436921806,9.69629623,165.32,165.31,0.2]
[1717436922115,7.0,165.32,165.31,0.2]
[1717436923188,2.2378,165.34,165.31,0.2]
[1717436923418,7.0,165.32,165.31,0.2]
[1717436924020,9.238,165.32,165.31,0.2]
[1717436925594,0.45829623,165.35,165.31,0.2]
[1717436925794,6.7118,165.38,165.31,0.2]
[1717436925795,7.0,165.32,165.31,0.2]
[1717436926005,9.238,165.32,165.31,0.2]
[1717436926212,4.4753,165.35,165.31,0.2]
[1717436926413,9.238,165.32,165.31,0.2]
[1717436929334,4.4753,165.35,165.31,0.2]
[1717436929335,2.2377,165.35,165.31,0.2]
[1717436929622,7.0,165.32,165.31,0.2]
[1717436930026,9.238,165.32,165.31,0.2]
[1717436930210,13.7141,165.32,165.31,0.2]
[1717436930417,2.2383,165.3,165.29,0.812914]
[1717436930618,9.2383,165.3,165.29,0.812914]
[1717436931309,13.715,165.3,165.29,0.812914]
[1717436931523,14.17329623,165.3,165.29,0.812914]
[1717436932594,13.715,165.3,165.29,0.812914]
[1717436935339,2.2383,165.3,165.29,0.812914]
[1717436935524,9.2383,165.3,165.29,0.812914]
[1717436936034,51.4975,165.3,165.29,0.812914]
[1717436936203,51.8375,165.3,165.29,0.812914]
[1717436936403,4.4773,165.28,165.22,6.3147]
[1717436936598,15.9534,165.3,165.21,7.2]
[1717436936599,2.2389,165.26,165.21,7.2]
[1717436936909,2.2386,165.28,165.23,16.0115]
[1717436937105,9.2385,165.29,165.23,24.5029]
[1717436937303,7.0,165.28,165.23,18.2507]
[1717436937506,7.0,165.28,165.24,6.1436]
[1717436937819,9.2386,165.28,165.24,6.1436]
[1717436938023,7.0,165.27,165.24,6.1436]
[1717436938925,7.0,165.27,165.24,6.2873]
[1717436940637,7.0,165.25,165.21,0.2]
[1717436940807,2.2394,165.22,165.21,0.2]
[1717436941141,6.7173,165.25,165.21,0.2]
[1717436941433,2.2394,165.23,165.21,0.2]
[1717436941729,2.2394,165.22,165.21,0.2]
[1717436941933,4.4779,165.26,165.21,0.2]
[1717436942306,2.2394,165.22,165.21,0.2]
[1717436942634,2.2393,165.23,165.21,0.2]
[1717436943228,4.4779,165.26,165.21,0.2]
[1717436943229,2.2394,165.22,165.21,0.2]
[1717436943602,2.2386,165.28,165.21,7.2]
[1717436943808,9.2387,165.27,165.23,6.1923]
[1717436944112,7.0,165.27,165.23,6.1923]
[1717436944824,2.2385,165.29,165.24,6.3826]
[1717436945018,4.4763,165.32,165.24,2.2391]
[1717436945207,7.0,165.28,165.25,6.3826]
[1717436945737,9.2385,165.29,165.25,6.3826]
[1717436945944,2.2386,165.28,165.25,6.3826]
[1717436946440,7.0,165.28,165.25,6.3826]
[1717436946945,9.2386,165.28,165.25,6.3826]
[1717436947740,7.0,165.28,165.25,6.3826]
[1717436948114,2.2385,165.29,165.25,6.3826]
[1717436948314,7.0,165.28,165.25,6.3826]
[1717436948533,9.2385,165.29,165.25,6.3826]
[1717436948711,4.4763,165.32,165.25,8.6215]
[1717436948712,2.2383,165.3,165.25,8.6215]
[1717436948910,7.0,165.29,165.26,6.1507]
[1717436949715,9.2385,165.29,165.26,6.1507]
[1717436949909,7.0,165.28,165.26,6.1507]
[1717436950725,7.0,165.28,165.22,0.17]
[1717436950924,7.0,165.26,165.23,6.4502]
[1717436951239,7.0,165.24,165.21,0.2]
[1717436952116,9.239,165.25,165.21,6.5096]
[1717436952508,2.239,165.25,165.21,6.5096]
[1717436952720,7.0,165.24,165.21,6.5096]
[1717436953744,9.239,165.25,165.21,6.5096]
[1717436955042,9.2391,165.24,165.21,6.5096]
[1717436955250,9.2391,165.24,165.21,0.2]
[1717436956130,2.2393,165.23,165.21,0.2]
[1717436956345,9.2392,165.24,165.21,0.2]
[1717436957419,7.0,165.23,165.21,0.2]
[1717436957740,4.4776,165.27,165.21,6.4626]
[1717436957939,9.239,165.25,165.21,6.4626]
[1717436959140,8.954,165.29,165.21,0.2]
[1717436959141,2.2394,165.22,165.21,0.2]
[1717436959346,29.3942,165.22,165.21,0.2]
[1717436964244,2.24,165.18,165.13,19.260914]
[1717436964448,2.2398,165.19,165.15,22.9626]
[1717436964746,15.27184794,165.27,165.17,6.3816]
[1717436964947,2.2392,165.24,165.19,2.2398]
[1717436965148,2.2392,165.24,165.19,18.4267]
[1717436965352,2.2392,165.24,165.21,6.6293]
[1717436965834,2.2392,165.24,165.2,2.2396]
[1717436966036,2.2392,165.24,165.22,6.0877]
[1717436966238,2.239,165.25,165.22,6.0877]
[1717436966647,2.2391,165.24,165.22,6.0877]
[1717436967632,2.239,165.25,165.22,6.0877]
[1717436967821,4.4766,165.31,165.21,16.4109]
[1717436968030,7.0,165.29,165.24,6.5486]
[1717436968255,11.1898,165.33,165.24,6.1405]
[1717436968431,9.2384,165.3,165.25,2.239]
[1717436968750,9.2384,165.3,165.26,6.1405]
[1717436970450,2.2381,165.32,165.27,8.7438]
[1717436970623,2.2382,165.31,165.28,1.81128813]
[1717436970952,9.2382,165.31,165.28,8.35968813]
[1717436971650,9.2383,165.3,165.28,6.5484]
[1717436971831,2.2384,165.29,165.28,6.5484]
[1717436972246,9.2384,165.3,165.28,6.5484]
[1717436972727,2.2384,165.3,165.28,6.5484]
[1717436972926,9.2384,165.3,165.28,6.5484]
[1717436973556,2.2384,165.3,165.28,6.5484]
[1717436973733,2.2381,165.32,165.28,6.5484]
[1717436973931,9.2381,165.32,165.28,6.5484]
[1717436974134,2.2381,165.32,165.28,6.5484]
[1717436974554,9.2381,165.32,165.28,6.5484]
[1717436974741,9.2381,165.32,165.29,6.0208]
[1717436974742,2.2381,165.32,165.29,6.0208]
[1717436976561,2.2382,165.31,165.27,6.0129]
[1717436976946,4.6758,165.34,165.27,6.0129]
[1717436977263,2.2391,165.25,165.2,2.2396]
[1717436977568,9.2391,165.24,165.2,8.2525]
[1717436977754,7.0,165.24,165.21,2.2394]
[1717436978136,9.239,165.25,165.21,2.2394]
[1717436978452,7.0,165.25,165.21,2.2394]
[1717436978660,7.0,165.25,165.22,2.2394]
[1717436979169,9.239,165.25,165.21,2.2395]
[1717436979535,9.239,165.25,165.2,6.0129]
[1717436979838,2.239,165.25,165.2,6.0129]
[1717436980256,2.2389,165.26,165.21,2.2395]
[1717436980948,2.2389,165.26,165.16,9.239]
[1717436980949,21.9416,165.25,165.16,9.239]
[1717436981271,21.9416,165.25,165.15,2.2403]
[1717436981272,2.2398,165.19,165.15,2.2403]
[1717436981631,2.2397,165.2,165.16,8.7149]
[1717436982148,2.2397,165.2,165.16,6.4747]
[1717436982351,2.2397,165.2,165.16,2.2402]
[1717436984252,21.9914,165.19,165.13,0.812914]
[1717436984456,2.2405,165.14,165.13,0.812914]
[1717436985464,2.2404,165.15,165.13,0.812914]
[1717436986062,2.2405,165.14,165.13,0.812914]
[1717436988351,2.2404,165.15,165.13,0.812914]
[1717436990147,2.2405,165.14,165.13,0.812914]
[1717436992664,2.2404,165.15,165.13,0.812914]
[1717436993073,2.2403,165.16,165.13,0.812914]
[1717436993755,4.4801,165.18,165.13,0.812914]
[1717436993756,2.2397,165.2,165.14,2.5804]
[1717436993956,2.2398,165.19,165.15,6.3436]
[1717436994151,2.2397,165.2,165.15,6.3436]
[1717436994451,2.2398,165.19,165.14,2.5804]
[1717436994670,2.2398,165.19,165.15,6.3436]
[1717436994856,2.2397,165.2,165.15,6.3436]
[1717436995972,2.2398,165.19,165.15,6.3436]
[1717436996284,11.1961,165.24,165.16,6.0289]
[1717436996452,2.2396,165.21,165.16,6.0289]
[1717436996866,2.2397,165.2,165.16,6.0289]
[1717436997550,4.4778,165.26,165.17,126.3293]
[1717436997747,2.2392,165.24,165.18,2.5799]
[1717436997972,2.2392,165.24,165.18,0.34]
[1717436998178,2.2392,165.24,165.18,2.5799]
[1717436998974,8.9555,165.26,165.18,0.34]
[1717436999155,2.2386,165.29,165.22,2.2393]
[1717436999359,2.2387,165.28,165.21,2.4095]
[1717436999558,2.2387,165.28,165.21,0.17]
[1717436999777,2.2387,165.28,165.21,2.5795]
[1717437000079,2.2383,165.3,165.24,2.2391]
[1717437000269,2.2383,165.3,165.25,8.13946602]
[1717437000894,2.2383,165.3,165.25,6.9313]
[1717437002176,2.2385,165.29,165.25,6.9313]
[1717437002681,2.2384,165.3,165.25,6.9313]
[1717437003054,2.2384,165.3,165.25,0.34]
[1717437003259,2.2384,165.3,165.26,6.2788]
[1717437003660,2.2382,165.31,165.25,6.6188]
[1717437004069,2.2383,165.3,165.25,6.6188]
[1717437004272,0.2,165.34,165.28,120.0]
[1717437004457,0.2,165.34,165.29,6.4592]
[1717437004781,2.4378,165.34,165.29,6.4592]
[1717437005262,0.2,165.34,165.29,6.4592]
[1717437005455,2.238,165.33,165.29,6.4592]
[1717437005775,2.4378,165.34,165.29,6.4592]
[1717437006182,0.2,165.34,165.29,7.04150448]
[1717437006671,0.2,165.34,165.31,6.5008]
[1717437006850,0.2,165.34,165.32,1.42467286]
[1717437007054,2.4378,165.34,165.32,1.42467286]
[1717437007681,0.2,165.34,165.32,1.42467286]
[1717437008584,2.4378,165.34,165.32,1.42467286]
[1717437008887,0.2,165.34,165.33,128.06018668]
[1717437012171,0.2,165.34,165.33,130.29808668]
[1717437012662,0.2,165.34,165.33,146.22658668]
[1717437012868,0.2,165.34,165.33,191.2500892]
[1717437013089,2.4364,165.44,165.38,120.0]
[1717437013289,2.4364,165.44,165.39,7.93686987]
[1717437013487,2.4364,165.44,165.4,1.54270525]
[1717437013889,0.2,165.44,165.4,1.54270525]
[1717437014091,0.2,165.44,165.41,0.34]
[1717437016305,0.2,165.44,165.42,2.2366]
[1717437016496,0.2,165.44,165.43,2.31844345]
[1717437017510,0.2,165.44,165.43,10.98684345]
[1717437018271,0.2,165.44,165.43,32.02954345]
[1717437018572,0.2,165.44,165.43,47.68554345]
[1717437020792,0.2,165.44,165.43,65.84554345]
[1717437021705,0.2,165.44,165.43,85.84554345]
[1717437024479,0.2,165.54,165.49,2.2357]
[1717437024679,0.2,165.54,165.5,2.75598798]
[1717437025097,0.2,165.54,165.5,4.99158798]
[1717437027288,0.2,165.54,165.5,2.75598798]
[1717437028389,0.2,165.54,165.5,4.99158798]
[1717437029200,0.2,165.54,165.5,2.75598798]
[1717437030698,0.2,165.54,165.5,4.99158798]
[1717437031395,0.2,165.54,165.51,2.2354]
[1717437031711,0.2,165.54,165.52,4.82099605]
[1717437031889,0.2,165.54,165.52,4.99099605]
[1717437032589,0.2,165.54,165.47,6.3909]
[1717437032801,0.2,165.54,165.49,2.2357]
[1717437033114,0.2,165.54,165.5,2.5756]
[1717437033316,0.2,165.54,165.5,0.17]
[1717437033497,0.2,165.54,165.49,2.2357]
[1717437033683,0.2,165.54,165.51,2.2354]
[1717437034692,0.2,165.54,165.52,2.4053]
[1717437035199,0.2,165.54,165.52,2.2353]
[1717437036194,0.2,165.54,165.51,3.46434886]
[1717437036393,0.2,165.54,165.52,0.17]
[1717437036983,0.2,165.54,165.52,0.34]
[1717437037305,0.2,165.54,165.48,120.0]
[1717437037493,0.2,165.54,165.49,2.4056]
[1717437037687,0.2,165.54,165.5,2.2356]
[1717437038218,0.2,165.54,165.51,2.2355]
[1717437038509,0.2,165.54,165.45,10.7389]
[1717437038711,2.4352,165.54,165.47,2.2359]
[1717437039016,0.2,165.54,165.49,2.2357]
[1717437039589,0.2,165.54,165.5,2.2356]
[1717437039995,0.2,165.54,165.49,2.2357]
[1717437041011,0.2,165.54,165.5,2.2356]
[1717437041815,0.2,165.54,165.49,2.2357]
[1717437042114,0.2,165.54,165.5,2.2355]
[1717437042489,0.2,165.54,165.51,2.2355]
[1717437043090,0.2,165.54,165.52,1.02636656]
[1717437043693,0.2,165.54,165.51,1.29247224]
[1717437044095,0.2,165.54,165.5,2.2356]
[1717437044814,0.2,165.54,165.51,1.36601838]
[1717437045205,0.2,165.54,165.51,2.2354]
[1717437045402,0.2,165.54,165.52,1.36636872]
[1717437045614,0.2,165.54,165.52,3.60166872]
[1717437045929,0.2,165.54,165.52,1.36636872]
[1717437046334,0.2,165.54,165.5,122.4055]
[1717437046626,0.2,165.54,165.51,2.5754]
[1717437048030,0.2,165.54,165.51,0.34]
[1717437048328,0.2,165.54,165.52,2.2353]
[1717437049318,0.2,165.54,165.51,2.5754]
[1717437049497,0.2,165.54,165.51,9.5854]
[1717437050393,0.2,165.54,165.46,135.6531]
[1717437050614,7.01,165.51,165.47,2.2359]
[1717437051115,22.3137,165.54,165.44,7.01]
[1717437051116,7.01,165.5,165.44,7.01]
[1717437051502,7.01,165.5,165.45,2.2362]
[1717437052111,7.01,165.5,165.46,2.2361]
[1717437052718,7.01,165.5,165.47,2.236]
[1717437052924,7.01,165.51,165.47,2.236]
[1717437053823,2.2353,165.52,165.47,2.236]
[1717437054032,8.3946,165.52,165.47,2.236]
[1717437054404,24.3415,165.52,165.47,2.236]
[1717437054606,24.3415,165.52,165.46,2.2361]
[1717437055507,22.9415,165.53,165.42,128.9468]
[1717437055821,2.2356,165.5,165.43,0.34]
[1717437056023,2.2355,165.51,165.45,2.2363]
[1717437056495,2.2355,165.51,165.43,0.34]
[1717437056496,2.2355,165.51,165.46,2.2361]
[1717437056697,6.3769,165.5,165.45,2.2362]
[1717437057013,6.3769,165.5,165.46,2.2361]
[1717437060939,16.5646,165.51,165.44,4.4727]
[1717437061100,16.5646,165.51,165.45,0.34]
[1717437061300,9.0404,165.54,165.48,2.2359]
[1717437061700,2.2352,165.53,165.47,2.236]
[1717437062827,2.2353,165.52,165.47,2.236]
[1717437063126,8.7775,165.52,165.47,2.236]
[1717437064200,8.7775,165.52,165.45,0.34]
[1717437064201,8.7775,165.52,165.46,2.2361]
[1717437064832,6.5422,165.52,165.47,2.236]
[1717437065135,0.2,165.54,165.46,4.4723]
[1717437065425,2.4351,165.54,165.48,2.2358]
[1717437065618,0.2,165.54,165.47,0.34]
[1717437065820,0.2,165.54,165.49,2.2357]
[1717437066026,0.2,165.54,165.47,11.5199]
[1717437066332,0.2,165.54,165.49,2.2357]
[1717437066912,2.4351,165.54,165.48,2.2359]
[1717437069432,2.4351,165.54,165.47,0.34]
[1717437069433,0.2,165.54,165.47,0.34]
[1717437070207,2.4351,165.54,165.48,2.2358]
[1717437070733,2.2352,165.53,165.47,2.236]
[1717437071534,0.65829623,165.54,165.43,4.473]
[1717437071834,2.2355,165.51,165.46,2.2361]
[1717437072044,2.2354,165.52,165.46,2.2361]
[1717437072523,2.2352,165.53,165.47,2.2359]
[1717437073731,2.2353,165.52,165.46,2.2361]
[1717437074130,15.93859623,165.54,165.46,2.2361]
[1717437074334,2.2354,165.52,165.46,2.2361]
[1717437074508,2.2356,165.51,165.43,4.473]
[1717437074718,2.2356,165.51,165.44,0.34]
[1717437075142,2.2353,165.52,165.46,2.236]
[1717437075946,7.02,165.5,165.46,2.236]
[1717437076248,7.02,165.5,165.47,2.2359]
[1717437076411,7.02,165.5,165.46,2.2361]
[1717437077230,6.17,165.49,165.44,0.17]
[1717437077550,13.19,165.46,165.42,2.2367]
[1717437077721,13.19,165.46,165.4,2.2369]
[1717437077722,7.02,165.44,165.4,2.2369]
[1717437077912,6.17,165.46,165.39,2.237]
[1717437077913,7.02,165.43,165.39,2.237]
[1717437078113,7.02,165.43,165.4,2.2369]
[1717437078318,7.02,165.42,165.4,2.2369]
[1717437080322,7.02,165.42,165.39,2.237]
[1717437080545,7.02,165.41,165.38,2.2372]
[1717437081524,7.02,165.42,165.39,2.237]
[1717437082246,7.02,165.42,165.34,127.02]
[1717437082449,7.02,165.4,165.37,2.2373]
[1717437082657,13.3183,165.44,165.34,11.4953]
[1717437082658,7.02,165.39,165.34,4.4753]
[1717437082951,2.2367,165.42,165.36,2.2374]
[1717437083248,7.02,165.38,165.36,2.2374]
[1717437083461,7.02,165.39,165.36,2.2374]
[1717437084061,7.02,165.39,165.35,2.2376]
[1717437084234,2.237,165.4,165.35,2.2376]
[1717437084428,7.02,165.37,165.34,2.2377]
[1717437084733,6.0889,165.35,165.31,0.2]
[1717437084923,7.02,165.34,165.31,0.2]
[1717437085323,7.02,165.34,165.31,2.4381]
[1717437085653,7.02,165.33,165.31,0.2]
[1717437085844,7.02,165.32,165.31,0.2]
[1717437086249,7.02,165.33,165.31,0.2]
[1717437087339,7.02,165.33,165.31,2.4381]
[1717437087536,7.02,165.33,165.31,0.2]
[1717437087860,7.02,165.33,165.31,2.4382]
[1717437088029,7.02,165.33,165.31,0.2]
[1717437088425,7.02,165.34,165.31,2.4382]
[1717437088625,7.02,165.33,165.31,2.4382]
[1717437090768,6.1085,165.43,165.32,0.34]
[1717437090982,7.02,165.39,165.33,7.02]
[1717437091263,7.02,165.38,165.33,2.2379]
[1717437091636,9.2573,165.38,165.32,2.408]
[1717437091870,9.2574,165.37,165.31,2.4381]
[1717437092067,9.2574,165.37,165.32,2.238]
[1717437092452,7.02,165.37,165.32,2.238]
[1717437092762,9.2571,165.39,165.33,2.2379]
[1717437092962,10.5817,165.43,165.34,123.50873626]
[1717437093162,6.1085,165.43,165.36,9.2574]
[1717437093368,2.2367,165.42,165.37,7.02]
[1717437093676,9.2561,165.47,165.41,9.2567]
[1717437093846,9.2561,165.47,165.42,0.17]
[1717437094047,2.2359,165.48,165.42,2.4067]
[1717437094653,2.236,165.47,165.42,0.17]
[1717437094862,2.236,165.47,165.4,2.4069]
[1717437095064,2.2361,165.46,165.41,0.34]
[1717437095248,2.2361,165.46,165.41,0.17]
[1717437095661,2.2367,165.42,165.36,2.2375]
[1717437095864,8.9454,165.45,165.33,6.069]
[1717437096058,2.2372,165.39,165.33,2.2379]
[1717437096641,2.2372,165.39,165.34,2.2378]
[1717437097481,2.237,165.4,165.34,2.2378]
[1717437097652,2.2368,165.41,165.35,2.2376]
[1717437097858,2.2367,165.42,165.36,2.2374]
[1717437098485,2.2368,165.41,165.35,2.2376]
[1717437099059,2.237,165.4,165.35,2.2376]
[1717437099673,2.2369,165.41,165.35,2.2376]
[1717437100059,2.237,165.4,165.34,2.2377]
[1717437101987,2.2369,165.41,165.35,2.2376]
[1717437102154,2.2369,165.41,165.36,2.2375]